bitfinex/quotes_SOLUSD_20240620
["timestamp","ask_amount","ask_price","bid_price","bid_amount"]
[1718887272352,27.2025,138.84,138.79,21.6893]
[1718887273352,21.63,138.87,138.79,21.6893]
[1718887273555,7.2016,138.86,138.79,21.6893]
[1718887273731,20.0,138.85,138.79,21.6893]
[1718887274349,7.2036,138.82,138.79,21.6893]
[1718887274627,7.2041,138.81,138.79,15.0648]
[1718887274930,21.63,138.84,138.76,6.3701]
[1718887275127,86.63,138.83,138.76,6.3701]
[1718887275330,20.0,138.82,138.76,6.3701]
[1718887275563,27.2038,138.82,138.76,6.3701]
[1718887275747,7.2041,138.81,138.76,6.3701]
[1718887276238,7.2042,138.81,138.76,6.3701]
[1718887276440,27.2038,138.82,138.76,6.3701]
[1718887277336,7.2032,138.83,138.77,0.34]
[1718887277642,7.2036,138.82,138.77,0.34]
[1718887277845,7.2032,138.83,138.77,0.34]
[1718887278054,12.99440049,138.86,138.78,0.17]
[1718887278351,7.2029,138.84,138.79,0.17]
[1718887278529,7.2029,138.84,138.79,0.34]
[1718887279962,36.8695,138.89,138.79,0.34]
[1718887280175,12.99387459,138.91,138.84,0.17]
[1718887280463,7.1991,138.91,138.84,0.51]
[1718887280658,7.1991,138.91,138.84,0.68]
[1718887280842,16.4356,138.93,138.84,0.68]
[1718887281037,12.98865014,138.95,138.84,0.68]
[1718887281243,7.1976,138.94,138.84,0.68]
[1718887281465,7.1971,138.95,138.86,0.17]
[1718887281662,7.51101255,138.98,138.87,6.2852]
[1718887281973,7.1959,138.97,138.88,0.68]
[1718887282145,7.1964,138.96,138.88,0.68]
[1718887282350,7.1968,138.95,138.88,0.68]
[1718887282551,21.63,138.96,138.88,0.68]
[1718887282768,21.63,138.96,138.87,6.2852]
[1718887282769,7.1987,138.92,138.87,6.2852]
[1718887283661,7.1975,138.94,138.87,6.2852]
[1718887283865,7.1989,138.91,138.87,6.2852]
[1718887284047,7.1992,138.91,138.87,6.2852]
[1718887284349,17.9935,138.94,138.87,6.2852]
[1718887284552,34.61777177,138.94,138.87,6.2852]
[1718887284762,41.63,138.93,138.87,6.2852]
[1718887285157,7.1994,138.9,138.87,6.2852]
[1718887285352,7.1994,138.9,138.85,16.2636]
[1718887285353,41.63,138.93,138.85,16.2636]
[1718887285673,7.2014,138.87,138.84,6.2907]
[1718887286052,20.0,138.93,138.84,6.2907]
[1718887286257,36.54009045,139.08,138.84,6.2907]
[1718887286258,20.17,138.94,138.84,6.2907]
[1718887286454,7.1989,138.91,138.84,6.2907]
[1718887286675,0.17,138.93,138.84,6.2907]
[1718887286858,7.2012,138.87,138.82,15.3028]
[1718887287054,7.2017,138.86,138.82,15.3028]
[1718887287369,7.2011,138.87,138.82,15.3028]
[1718887287548,21.63,138.89,138.82,15.3028]
[1718887287866,7.2012,138.87,138.82,15.3028]
[1718887288069,20.0,138.88,138.82,15.3028]
[1718887288765,20.0,138.88,138.83,0.17]
[1718887288981,21.63,138.89,138.83,0.17]
[1718887289561,7.1999,138.89,138.83,0.17]
[1718887290071,21.63,138.9,138.82,15.5007]
[1718887290373,21.63,138.88,138.81,6.3365]
[1718887290670,21.63,138.84,138.78,22.7319]
[1718887290874,21.63,138.85,138.78,22.7319]
[1718887291057,7.2032,138.83,138.78,22.7319]
[1718887291248,7.2027,138.84,138.78,22.7319]
[1718887291847,7.2027,138.84,138.79,0.17]
[1718887292058,18.0038,138.86,138.79,0.17]
[1718887292260,20.0,138.85,138.79,0.17]
[1718887292694,7.2028,138.84,138.79,0.17]
[1718887295180,7.203,138.83,138.79,0.17]
[1718887295350,7.2036,138.82,138.78,22.7319]
[1718887296882,7.2032,138.83,138.78,22.7319]
[1718887298471,7.2026,138.84,138.78,22.7319]
[1718887298763,41.63,138.85,138.78,22.7319]
[1718887298764,48.8322,138.85,138.78,22.7319]
[1718887298967,27.2022,138.85,138.79,0.17]
[1718887299168,41.63,138.85,138.78,22.7319]
[1718887299372,20.0,138.85,138.78,22.7319]
[1718887299575,7.2024,138.85,138.79,0.17]
[1718887299779,7.2024,138.85,138.79,0.34]
[1718887300278,7.2026,138.84,138.79,0.34]
[1718887300780,7.2031,138.83,138.78,22.7319]
[1718887302171,7.2027,138.84,138.78,22.7319]
[1718887302365,21.63,138.86,138.79,0.17]
[1718887302366,7.2022,138.85,138.79,0.17]
[1718887302883,27.2013,138.87,138.79,0.17]
[1718887303067,7.2015,138.86,138.79,0.68]
[1718887304180,21.63,138.91,138.79,0.68]
[1718887304383,33.8212,138.93,138.79,0.68]
[1718887304384,7.2005,138.88,138.79,0.68]
[1718887304702,7.2004,138.88,138.79,2.11978168]
[1718887305065,20.0,138.9,138.79,2.11978168]
[1718887305266,7.2002,138.89,138.79,2.11978168]
[1718887305489,7.2002,138.89,138.79,22.11978168]
[1718887305672,7.2005,138.88,138.79,20.68]
[1718887306696,47.32415017,138.91,138.79,20.68]
[1718887306874,7.2,138.89,138.79,20.68]
[1718887307070,7.2005,138.88,138.79,20.68]
[1718887307704,7.2003,138.89,138.79,20.0]
[1718887308775,7.2003,138.89,138.81,0.17]
[1718887308993,7.2003,138.89,138.81,0.68]
[1718887309365,7.1995,138.9,138.81,0.68]
[1718887309568,7.1995,138.9,138.83,0.17]
[1718887309774,7.1985,138.92,138.83,0.68]
[1718887309982,7.1985,138.92,138.85,0.17]
[1718887310197,7.1985,138.92,138.85,0.68]
[1718887310375,17.9922,138.95,138.85,0.68]
[1718887310687,7.1984,138.92,138.85,0.68]
[1718887311067,7.1989,138.91,138.85,0.68]
[1718887311277,7.1995,138.9,138.85,0.68]
[1718887311576,7.1984,138.92,138.86,0.17]
[1718887311776,7.1984,138.92,138.87,0.17]
[1718887311983,7.1984,138.92,138.87,0.51]
[1718887312165,7.1992,138.91,138.85,0.17]
[1718887312371,21.63,138.95,138.85,0.68]
[1718887312577,7.199,138.91,138.85,0.68]
[1718887312778,21.63,138.94,138.84,16.4221]
[1718887313095,21.63,138.92,138.84,16.4221]
[1718887313276,21.63,138.91,138.84,16.4221]
[1718887313784,7.2002,138.89,138.84,16.4221]
[1718887314689,7.1995,138.9,138.84,16.4221]
[1718887315789,28.829,138.91,138.84,16.4221]
[1718887316297,66.63,138.93,138.85,0.51]
[1718887316476,21.63,138.93,138.85,0.51]
[1718887316678,17.9919,138.96,138.84,16.4221]
[1718887316679,7.1991,138.91,138.84,16.4221]
[1718887317493,7.1985,138.92,138.85,0.17]
[1718887317697,7.1985,138.92,138.85,0.68]
[1718887317898,28.8285,138.92,138.85,0.51]
[1718887318202,28.8285,138.92,138.85,0.34]
[1718887318896,7.199,138.91,138.85,0.34]
[1718887319075,21.63,138.91,138.84,16.4221]
[1718887319394,7.2002,138.89,138.84,16.4221]
[1718887319703,28.829,138.91,138.84,16.4221]
[1718887320076,7.1994,138.9,138.84,16.4221]
[1718887320277,7.1989,138.91,138.85,0.17]
[1718887320471,7.1996,138.9,138.84,16.4221]
[1718887321097,21.63,138.93,138.84,16.4221]
[1718887321303,21.63,138.87,138.82,6.3828]
[1718887321597,7.2016,138.86,138.82,6.3828]
[1718887321800,7.201,138.87,138.82,6.3828]
[1718887322012,7.2007,138.88,138.82,6.3828]
[1718887322376,7.201,138.87,138.82,6.3828]
[1718887322585,7.2012,138.87,138.82,6.3828]
[1718887323091,28.8312,138.87,138.82,6.3828]
[1718887323295,7.2029,138.84,138.82,6.3828]
[1718887323507,21.63,138.89,138.82,6.3828]
[1718887323810,7.2011,138.87,138.82,6.3828]
[1718887323975,28.8311,138.87,138.82,6.3828]
[1718887324172,7.2011,138.87,138.82,6.3828]
[1718887324383,65.0,138.88,138.82,6.3828]
[1718887324602,0.51,138.87,138.78,22.8602]
[1718887324788,7.2045,138.81,138.78,22.8602]
[1718887324985,21.63,138.82,138.78,16.2617]
[1718887325184,28.8343,138.81,138.75,22.8602]
[1718887325387,28.8343,138.81,138.71,21.3375]
[1718887325388,7.2052,138.79,138.71,21.3375]
[1718887325585,21.63,138.81,138.71,21.3375]
[1718887325791,7.2065,138.77,138.71,21.3375]
[1718887326002,21.63,138.79,138.71,21.3375]
[1718887326498,7.2056,138.78,138.71,21.3375]
[1718887327193,28.8353,138.79,138.71,21.3375]
[1718887327397,28.8353,138.79,138.72,0.17]
[1718887327602,28.8353,138.79,138.72,0.34]
[1718887327984,21.63,138.82,138.72,0.34]
[1718887328192,41.63,138.81,138.74,0.17]
[1718887328396,21.63,138.8,138.72,0.17]
[1718887328599,20.0,138.81,138.72,0.17]
[1718887328600,20.0,138.81,138.72,0.68]
[1718887328806,20.0,138.83,138.72,0.68]
[1718887329000,66.63,138.82,138.72,0.68]
[1718887329306,41.63,138.81,138.72,0.68]
[1718887329486,7.2051,138.79,138.72,0.68]
[1718887329693,7.2047,138.8,138.72,0.68]
[1718887329892,20.0,138.81,138.72,0.68]
[1718887330106,28.8333,138.83,138.72,0.68]
[1718887330412,16.1395,138.87,138.72,20.68]
[1718887330613,20.0,138.86,138.76,0.17]
[1718887330782,7.2042,138.81,138.76,0.34]
[1718887330979,21.63,138.84,138.75,21.5131]
[1718887331197,7.2053,138.79,138.75,21.5131]
[1718887331408,7.204,138.82,138.75,21.5131]
[1718887331603,26.23,138.85,138.75,21.5131]
[1718887331604,44.2352,138.85,138.75,21.5131]
[1718887331901,41.65028159,138.87,138.75,21.5131]
[1718887332108,7.2028,138.84,138.76,0.34]
[1718887332308,28.8328,138.84,138.77,0.17]
[1718887332509,20.17,138.86,138.77,0.34]
[1718887332510,20.0,138.86,138.77,0.34]
[1718887332701,7.2028,138.84,138.78,0.34]
[1718887333007,7.2017,138.86,138.79,0.34]
[1718887333305,7.2016,138.86,138.82,21.3436]
[1718887333490,7.2025,138.84,138.82,21.3436]
[1718887333689,7.2025,138.84,138.79,22.0889]
[1718887333893,7.2038,138.82,138.79,21.9189]
[1718887334084,7.2033,138.83,138.79,21.9189]
[1718887334706,7.2037,138.82,138.75,0.17]
[1718887334882,7.2037,138.82,138.75,0.68]
[1718887335382,7.2036,138.82,138.75,0.68]
[1718887335885,7.2036,138.82,138.75,0.51]
[1718887336280,7.2031,138.83,138.75,0.51]
[1718887336486,7.2036,138.82,138.75,0.51]
[1718887337238,7.2041,138.81,138.74,21.3767]
[1718887337384,7.2042,138.81,138.74,21.3767]
[1718887337694,16.4365,138.87,138.74,21.3767]
[1718887337893,7.202,138.85,138.74,21.3767]
[1718887338203,7.2023,138.85,138.74,21.3767]
[1718887338422,32.6298,138.9,138.75,0.17]
[1718887338600,27.2008,138.88,138.79,0.17]
[1718887338803,7.2009,138.87,138.79,0.68]
[1718887339003,7.2016,138.86,138.79,0.68]
[1718887339200,7.2026,138.84,138.79,0.17]
[1718887339610,7.2014,138.87,138.79,0.68]
[1718887340005,21.63,138.86,138.79,0.17]
[1718887340314,7.2028,138.84,138.79,0.17]
[1718887340623,7.2022,138.85,138.79,0.17]
[1718887340825,7.2026,138.84,138.79,0.17]
[1718887341413,7.2026,138.84,138.78,21.5461]
[1718887341414,7.204,138.82,138.78,21.5461]
[1718887343613,7.2032,138.83,138.78,21.5461]
[1718887343821,28.8332,138.83,138.78,21.5461]
[1718887344040,28.8337,138.82,138.78,21.5461]
[1718887344326,28.8337,138.82,138.78,15.0773]
[1718887345727,28.8331,138.83,138.78,15.0773]
[1718887345931,253.4,138.89,138.79,0.17]
[1718887346224,253.4,138.89,138.79,0.34]
[1718887346225,20.0,138.88,138.79,0.34]
[1718887346393,7.2017,138.86,138.79,0.34]
[1718887346594,7.2017,138.86,138.79,0.17]
[1718887346817,7.2017,138.86,138.79,0.34]
[1718887349715,7.2031,138.83,138.78,15.0773]
[1718887349921,7.2028,138.84,138.78,15.0773]
[1718887350434,28.8328,138.84,138.78,15.0773]
[1718887350631,21.63,138.83,138.78,15.0773]
[1718887350830,7.2041,138.81,138.78,15.0773]
[1718887351138,7.2044,138.81,138.78,15.0773]
[1718887351439,7.2054,138.79,138.75,22.7501]
[1718887351635,21.63,138.83,138.75,22.7501]
[1718887351846,20.0,138.82,138.75,22.7501]
[1718887352424,7.2033,138.83,138.76,0.17]
[1718887352623,20.0,138.82,138.76,0.17]
[1718887353233,7.2027,138.84,138.76,0.68]
[1718887353411,41.6093,138.88,138.76,0.68]
[1718887353412,7.2022,138.85,138.76,0.68]
[1718887354420,7.2026,138.84,138.76,0.68]
[1718887355635,7.2022,138.85,138.76,0.68]
[1718887356210,6.5532,138.91,138.78,0.17]
[1718887356547,7.2006,138.88,138.78,20.51]
[1718887356755,7.2011,138.87,138.78,20.68]
[1718887357044,12.22362138,138.91,138.78,20.68]
[1718887357246,7.2011,138.87,138.78,20.68]
[1718887357415,21.63,138.9,138.78,20.68]
[1718887357609,7.1999,138.89,138.8,0.17]
[1718887357845,7.2004,138.88,138.8,0.51]
[1718887358145,7.2004,138.88,138.81,0.17]
[1718887358313,7.2012,138.87,138.81,0.17]
[1718887358514,7.2021,138.85,138.79,16.2611]
[1718887358709,39.6326,138.87,138.79,16.2611]
[1718887358952,7.2032,138.83,138.79,16.2611]
[1718887359322,7.203,138.83,138.79,16.2611]
[1718887359636,59.6347,138.86,138.79,16.2611]
[1718887359810,7.2027,138.84,138.79,16.2611]
[1718887360621,59.6347,138.86,138.79,16.2611]
[1718887360823,7.2037,138.82,138.79,16.2611]
[1718887361014,7.2032,138.83,138.79,16.2611]
[1718887361635,7.2036,138.82,138.79,16.2611]
[1718887361836,39.638,138.83,138.77,6.1486]
[1718887362032,7.2043,138.81,138.77,6.1486]
[1718887362242,39.638,138.83,138.77,6.1486]
[1718887362430,7.2046,138.8,138.77,6.1486]
[1718887362931,7.2046,138.8,138.76,16.4199]
[1718887363542,7.2058,138.78,138.74,6.3716]
[1718887363743,7.2061,138.77,138.72,15.8599]
[1718887364346,7.2058,138.78,138.72,15.8599]
[1718887365515,51.35954172,138.84,138.73,0.17]
[1718887365750,7.204,138.82,138.73,0.51]
[1718887366042,7.2031,138.83,138.74,0.17]
[1718887366242,7.2031,138.83,138.75,0.17]
[1718887366419,288.4873,138.86,138.74,0.17]
[1718887366720,288.4873,138.86,138.73,0.17]
[1718887366721,7.2044,138.81,138.73,0.17]
[1718887367043,7.2048,138.8,138.73,0.68]
[1718887367340,7.2053,138.79,138.72,15.8599]
[1718887367541,7.206,138.78,138.72,15.8599]
[1718887367847,28.8353,138.79,138.72,15.8599]
[1718887368027,7.2053,138.79,138.72,15.8599]
[1718887368422,7.2069,138.76,138.72,15.8599]
[1718887368620,21.63,138.78,138.72,15.8599]
[1718887369024,7.2059,138.78,138.72,15.8599]
[1718887369235,7.2054,138.79,138.72,15.8599]
[1718887369840,7.12201171,138.85,138.73,0.34]
[1718887370024,18.0074,138.84,138.75,0.17]
[1718887370218,7.2038,138.82,138.75,0.17]
[1718887370835,7.2032,138.83,138.77,0.17]
[1718887371040,268.4873,138.86,138.77,0.17]
[1718887371350,41.63,138.85,138.76,6.2823]
[1718887371727,7.2029,138.84,138.78,15.4678]
[1718887371929,21.63,138.82,138.78,15.4678]
[1718887372129,7.2045,138.81,138.78,15.4678]
[1718887372941,7.2035,138.82,138.78,15.4678]
[1718887373521,7.2032,138.83,138.78,15.4678]
[1718887373725,7.2036,138.82,138.78,15.4678]
[1718887376132,7.2033,138.83,138.78,15.4678]
[1718887376852,27.2024,138.85,138.79,0.17]
[1718887377049,27.2024,138.85,138.79,0.34]
[1718887377442,20.0,138.85,138.79,0.34]
[1718887377636,7.201,138.87,138.79,1.77933745]
[1718887377840,7.2015,138.86,138.79,1.77933745]
[1718887378151,7.2026,138.84,138.79,0.34]
[1718887378642,7.2022,138.85,138.79,0.34]
[1718887378843,27.39993173,138.89,138.79,0.34]
[1718887379041,7.2014,138.87,138.79,0.34]
[1718887379239,7.2015,138.86,138.79,0.34]
[1718887380058,27.39993173,138.89,138.81,0.17]
[1718887380059,7.2011,138.87,138.81,0.17]
[1718887380358,7.2006,138.88,138.81,0.34]
[1718887380553,7.2006,138.88,138.82,6.0459]
[1718887380728,7.2016,138.86,138.82,6.0459]
[1718887381129,7.2022,138.85,138.82,6.0459]
[1718887381429,7.2022,138.85,138.78,15.4678]
[1718887381430,21.63,138.88,138.78,15.4678]
[1718887381650,7.2025,138.84,138.79,6.4202]
[1718887381956,7.2027,138.84,138.79,6.4202]
[1718887382460,7.2022,138.85,138.79,6.4202]
[1718887382644,7.2034,138.83,138.79,6.4202]
[1718887382955,7.2037,138.82,138.79,6.4202]
[1718887383262,7.2041,138.81,138.78,15.4678]
[1718887383953,7.2046,138.8,138.75,6.5322]
[1718887385140,7.2043,138.81,138.75,6.5322]
[1718887385459,28.8346,138.8,138.75,6.5322]
[1718887386531,21.63,138.8,138.75,6.5322]
[1718887386736,28.8338,138.82,138.75,6.5322]
[1718887387338,6.3543,138.85,138.75,6.5322]
[1718887387544,65.51,138.84,138.75,6.5322]
[1718887387856,28.8348,138.8,138.75,6.5322]
[1718887388357,21.63,138.8,138.75,6.5322]
[1718887389838,7.2043,138.81,138.75,6.5322]
[1718887390060,7.2022,138.85,138.76,0.51]
[1718887390233,6.4664,138.88,138.76,0.51]
[1718887390234,7.2025,138.84,138.76,0.51]
[1718887390541,7.2038,138.82,138.76,0.51]
[1718887390746,7.2044,138.81,138.75,6.5322]
[1718887390946,6.4664,138.88,138.75,6.5322]
[1718887390947,7.2047,138.8,138.75,6.5322]
[1718887391357,28.8347,138.8,138.75,6.5322]
[1718887391634,21.63,138.8,138.74,16.4071]
[1718887391857,7.2058,138.78,138.74,16.4071]
[1718887392458,28.8358,138.78,138.74,16.4071]
[1718887392869,21.63,138.78,138.74,16.4071]
[1718887393468,28.8365,138.77,138.71,22.7445]
[1718887393658,7.207,138.76,138.71,22.7445]
[1718887393960,16.2409,138.81,138.71,22.7445]
[1718887394146,21.63,138.78,138.71,22.7445]
[1718887394344,7.2067,138.76,138.71,22.7445]
[1718887395238,21.63,138.75,138.71,22.7445]
[1718887395658,21.63,138.75,138.71,16.4017]
[1718887395659,7.2078,138.74,138.71,16.4017]
[1718887395964,7.2078,138.74,138.67,6.2329]
[1718887395965,28.8378,138.74,138.68,15.7313]
[1718887396265,21.63,138.74,138.68,15.7313]
[1718887396641,7.2069,138.76,138.68,15.7313]
[1718887396946,0.17,138.79,138.68,15.7313]
[1718887397151,20.17,138.79,138.68,15.7313]
[1718887397353,27.2054,138.79,138.69,0.51]
[1718887397561,7.2059,138.78,138.7,0.17]
[1718887397797,21.63,138.8,138.69,26.57]
[1718887397971,21.63,138.8,138.69,0.34]
[1718887398146,7.2075,138.75,138.69,0.34]
[1718887398460,21.63,138.75,138.68,15.9013]
[1718887398665,21.63,138.75,138.68,15.7313]
[1718887398666,7.2085,138.73,138.68,15.7313]
[1718887398864,28.8385,138.73,138.68,15.7313]
[1718887399166,7.2089,138.72,138.68,15.7313]
[1718887399342,28.8384,138.73,138.68,15.7313]
[1718887400079,7.2079,138.74,138.68,15.7313]
[1718887400376,28.8374,138.75,138.68,15.7313]
[1718887400566,93.8377,138.74,138.68,15.7313]
[1718887400763,28.8383,138.73,138.68,15.7313]
[1718887401061,7.2087,138.72,138.68,15.7313]
[1718887401247,21.63,138.73,138.68,15.7313]
[1718887401561,7.2083,138.73,138.68,15.7313]
[1718887401868,28.8383,138.73,138.68,15.7313]
[1718887402070,28.8396,138.71,138.67,6.2329]
[1718887402272,28.8394,138.71,138.67,6.2329]
[1718887402773,28.8394,138.71,138.65,16.2648]
[1718887403260,7.2103,138.69,138.65,16.2648]
[1718887403470,28.84,138.7,138.65,16.2648]
[1718887403663,7.2103,138.69,138.65,16.2648]
[1718887404271,66.63,138.68,138.6,16.308]
[1718887404454,28.8426,138.65,138.6,16.308]
[1718887404848,28.8424,138.65,138.6,16.308]
[1718887405352,21.63,138.65,138.6,16.308]
[1718887405569,28.8415,138.67,138.6,16.308]
[1718887405870,7.2115,138.67,138.6,16.308]
[1718887406257,7.2119,138.66,138.6,16.308]
[1718887407146,21.63,138.67,138.6,16.308]
[1718887407351,28.8424,138.65,138.6,16.308]
[1718887407755,28.8432,138.64,138.6,16.308]
[1718887407944,21.63,138.64,138.6,16.308]
[1718887408149,21.69,138.65,138.6,16.308]
[1718887408365,52.2122,138.66,138.6,16.308]
[1718887408757,7.2113,138.67,138.6,16.308]
[1718887409052,18.0257,138.7,138.6,16.308]
[1718887409249,28.9016,138.67,138.6,16.308]
[1718887409874,7.2119,138.66,138.6,16.308]
[1718887410262,28.9015,138.67,138.6,16.308]
[1718887410570,21.69,138.67,138.6,16.308]
[1718887410777,21.69,138.68,138.61,0.17]
[1718887411073,25.52708657,138.73,138.61,0.68]
[1718887411074,269.6388,138.72,138.61,0.68]
[1718887411288,7.2106,138.69,138.61,0.68]
[1718887411573,253.4,138.72,138.61,0.68]
[1718887411785,28.9,138.7,138.63,0.17]
[1718887411958,253.4,138.72,138.63,0.34]
[1718887411959,7.2095,138.71,138.63,0.34]
[1718887412158,7.2095,138.71,138.64,0.17]
[1718887412369,260.6089,138.72,138.65,0.17]
[1718887412549,7.2094,138.71,138.66,15.265]
[1718887412748,21.69,138.71,138.66,15.265]
[1718887412966,7.2101,138.7,138.66,15.265]
[1718887413159,28.8994,138.71,138.66,15.265]
[1718887414075,21.69,138.72,138.66,15.265]
[1718887414259,7.2095,138.71,138.66,15.265]
[1718887414466,7.2099,138.7,138.66,15.265]
[1718887415379,7.2103,138.69,138.66,15.265]
[1718887415562,7.21,138.7,138.66,15.265]
[1718887415766,21.69,138.72,138.66,15.265]
[1718887415973,7.2086,138.73,138.67,0.17]
[1718887416273,7.2082,138.73,138.68,6.3689]
[1718887417274,7.2089,138.72,138.68,6.3689]
[1718887417677,7.2084,138.73,138.68,6.3689]
[1718887417969,7.2078,138.74,138.68,6.3689]
[1718887418578,7.2084,138.73,138.68,6.3689]
[1718887418876,7.2078,138.74,138.68,6.3689]
[1718887420062,7.2083,138.73,138.68,6.3689]
[1718887420294,21.69,138.76,138.69,0.17]
[1718887420475,7.2075,138.75,138.69,0.17]
[1718887420683,7.2075,138.75,138.69,0.34]
[1718887421777,7.2067,138.76,138.69,0.34]
[1718887421976,253.4,138.78,138.71,0.17]
[1718887421977,260.606,138.78,138.71,0.17]
[1718887422178,7.206,138.78,138.71,0.34]
[1718887422684,62.2473,138.83,138.7,16.1896]
[1718887422981,41.69,138.82,138.7,16.1896]
[1718887423181,39.704,138.79,138.71,0.17]
[1718887423380,7.2064,138.77,138.71,0.34]
[1718887424267,7.2073,138.75,138.7,16.1896]
[1718887424474,7.2074,138.75,138.7,16.1896]
[1718887424783,7.2068,138.76,138.7,16.1896]
[1718887424981,28.8968,138.76,138.7,16.1896]
[1718887425783,21.69,138.76,138.7,16.1896]
[1718887426277,7.208,138.74,138.7,16.1896]
[1718887426668,7.2083,138.73,138.7,16.1896]
[1718887426877,7.2088,138.72,138.68,6.3689]
[1718887427095,7.2087,138.72,138.68,6.3689]
[1718887427309,7.2085,138.73,138.68,6.3689]
[1718887427470,21.69,138.73,138.68,6.3689]
[1718887427673,18.0179,138.76,138.63,15.0168]
[1718887427674,21.69,138.69,138.63,15.0168]
[1718887427978,21.69,138.68,138.63,15.0168]
[1718887428173,28.901,138.68,138.63,15.0168]
[1718887428380,7.2104,138.69,138.63,15.0168]
[1718887428581,28.8999,138.7,138.63,15.0168]
[1718887428884,7.2103,138.69,138.63,15.0168]
[1718887429191,7.2103,138.69,138.64,0.17]
[1718887429671,7.2099,138.7,138.64,0.17]
[1718887429874,21.69,138.72,138.64,0.68]
[1718887430097,7.2096,138.71,138.64,0.68]
[1718887430305,7.2086,138.73,138.64,0.68]
[1718887430494,21.69,138.73,138.64,0.68]
[1718887430715,7.2092,138.72,138.64,0.68]
[1718887430888,21.69,138.72,138.63,15.0168]
[1718887431069,7.2109,138.68,138.63,15.0168]
[1718887431397,7.2113,138.67,138.63,15.0168]
[1718887431975,21.69,138.73,138.63,15.0168]
[1718887432191,7.2096,138.71,138.63,15.0168]
[1718887432497,7.2098,138.7,138.63,15.0168]
[1718887433397,7.2095,138.71,138.64,0.68]
[1718887433576,7.2098,138.7,138.64,0.68]
[1718887434172,21.69,138.73,138.64,0.68]
[1718887434384,7.2095,138.71,138.64,0.68]
[1718887435701,7.2101,138.7,138.64,0.34]
[1718887437402,7.2103,138.69,138.63,15.0168]
[1718887437601,7.2115,138.67,138.63,15.0168]
[1718887437810,21.69,138.72,138.63,15.0168]
[1718887438011,7.2101,138.7,138.63,15.0168]
[1718887438179,7.2107,138.69,138.63,15.0168]
[1718887438498,7.2108,138.68,138.63,15.0168]
[1718887438692,0.17,138.71,138.63,15.0168]
[1718887438693,7.2098,138.7,138.63,15.0168]
[1718887439079,7.2098,138.7,138.64,0.17]
[1718887439588,7.2104,138.69,138.63,15.0168]
[1718887440116,7.2109,138.68,138.63,15.0168]
[1718887440308,7.2099,138.7,138.63,15.0168]
[1718887440680,7.2103,138.69,138.63,15.0168]
[1718887441202,21.69,138.69,138.63,15.0168]
[1718887441387,7.2119,138.66,138.63,15.0168]
[1718887441589,7.2118,138.67,138.63,15.0168]
[1718887442200,7.2109,138.68,138.63,15.0168]
[1718887443295,21.69,138.7,138.63,15.0168]
[1718887443493,44.4206,138.73,138.63,15.0168]